[Event "9th Amsterdam Science Park A 2019"]
[Site "Amsterdam"]
[Date "2019.07.14"]
[Round "9.11"]
[White "Vos, Tjark"]
[Black "Bogaard, Milo"]
[Result "1-0"]
[ECO "B36"]
[WhiteElo "2210"]
[BlackElo "2100"]
[Annotator "NA"]
[PlyCount "123"]
[EventDate "2019.07.06"]
[EventType "swiss"]
[EventCountry "NED"]
[SourceTitle "playchess.com"]
[Source "ChessBase"]
[SourceQuality "1"]
[TimeControl "40/5400+30:1800+30"]

1. e4 {[%emt 0:00:00]} c5 {[%emt 0:00:00]} 2. Nf3 {[%emt 0:00:00]} Nc6 {[%emt 0:00:00]} 3. d4 {[%emt 0:00:00]} cxd4 {[%emt 0:00:05]} 4. Nxd4 {[%emt 0:00:00]} g6 {[%emt 0:00:14]} 5. c4 {[%emt 0:00:00]} Nf6 {[%emt 0:00:14]} 6. Nc3 {[%emt 0:00:04]} d6 {[%emt 0:00:17]} 7. Be2 {[%emt 0:01:04]} Nxd4 {[%emt 0:00:48]} 8. Qxd4 {[%emt 0:00:08]} Bg7 {[%emt 0:00:08]} 9. Bg5 {[%emt 0:00:44]} O-O {[%emt 0:00:37]} 10. Qd2 {[%emt 0:00:45]} a5 {[%emt 0:07:59]} 11. Rd1 {[%emt 0:03:53]} Be6 {[%emt 0:02:00]} 12. b3 {[%emt 0:00:47]} Re8 {[%emt 0:03:21]} 13. f3 {[%emt 0:00:37]} Qb6 {[%emt 0:11:51]} 14. Rc1 {[%emt 0:13:45]} Rac8 {[%emt 0:19:59]} 15. Be3 {[%emt 0:02:56]} Qb4 {[%emt 0:05:07]} 16. Na4 {[%emt 0:24:35]} Nd7 {[%emt 0:15:54]} 17. Qxb4 {[%emt 0:08:01]} axb4 {[%emt 0:00:07]} 18. O-O {[%emt 0:00:22]} Nc5 {[%emt 0:02:34]} 19. Nb6 {[%emt 0:01:30]} Rc6 {[%emt 0:01:08]} 20. Nd5 {[%emt 0:00:05]} Bxd5 {[%emt 0:01:01]} 21. cxd5 {[%emt 0:07:46]} Rc7 {[%emt 0:00:55]} 22. Bd2 {[%emt 0:06:21]} Ra8 {[%emt 0:00:49]} 23. Rc2 {[%emt 0:00:20]} b6 {[%emt 0:09:24]} 24. Bxb4 {[%emt 0:02:36]} Rca7 {[%emt 0:00:23]} 25. Bxc5 {[%emt 0:00:50]} dxc5 {[%emt 0:04:25]} 26. a4 {[%emt 0:00:16]} Bd4+ {[%emt 0:00:05]} 27. Kh1 {[%emt 0:00:03]} g5 {[%emt 0:01:14]} 28. g3 {[%emt 0:01:37]} f6 {[%emt 0:02:58]} 29. Kg2 {[%emt 0:00:14]} Kg7 {[%emt 0:00:21]} 30. Rh1 {[%emt 0:01:44]} h6 {[%emt 0:04:32]} 31. h4 {[%emt 0:00:07]} Rh8 {[%emt 0:00:36]} 32. Rh3 {[%emt 0:01:04]} Raa8 {[%emt 0:00:25]} 33. Bc4 {[%emt 0:00:52]} Raf8 {[%emt 0:02:09]} 34. Re2 {[%emt 0:01:15]} Rd8 {[%emt 0:01:20]} 35. Rh1 {[%emt 0:03:44]} Rdf8 {[%emt 0:00:53]} 36. Ree1 {[%emt 0:01:03]} Rd8 {[%emt 0:00:14]} 37. Rh2 {[%emt 0:01:28]} Rdf8 {[%emt 0:00:18]} 38. f4 {[%emt 0:01:01]} Rd8 {[%emt 0:00:58]} 39. Kf3 {[%emt 0:00:20]} Rdf8 {[%emt 0:01:58]} 40. Reh1 {[%emt 0:02:03]} Rd8 {[%emt 0:01:23]} 41. hxg5 {[%emt 0:44:08]} hxg5 {[%emt 0:31:10]} 42. Rxh8 {[%emt 0:00:08]} Rxh8 {[%emt 0:00:04]} 43. Rxh8 {[%emt 0:00:05]} Kxh8 {[%emt 0:00:04]} 44. fxg5 {[%emt 0:00:07]} fxg5 {[%emt 0:00:00]} 45. Kg4 {[%emt 0:00:00]} Be3 {[%emt 0:00:00]} 46. Kf5 {[%emt 0:00:00]} Kg7 {[%emt 0:00:00]} 47. Ke6 {[%emt 0:00:00]} Kf8 {[%emt 0:00:00]} 48. Bb5 {[%emt 0:00:00]} g4 {[%emt 0:00:00]} 49. Kf5 {[%emt 0:00:00]} Kf7 {[%emt 0:00:00]} 50. e5 {[%emt 0:00:00]} e6+ {[%emt 0:00:00]} 51. dxe6+ {[%emt 0:00:00]} Ke7 {[%emt 0:00:00]} 52. Bc4 {[%emt 0:00:00]} Bd4 {[%emt 0:00:00]} 53. Kxg4 {[%emt 0:00:00]} Bxe5 {[%emt 0:00:00]} 54. Kf3 {[%emt 0:00:00]} Bc7 {[%emt 0:00:00]} 55. g4 {[%emt 0:00:00]} Bd8 {[%emt 0:00:00]} 56. Ke4 {[%emt 0:00:00]} Kd6 {[%emt 0:00:00]} 57. Kf5 {[%emt 0:00:00]} Bh4 {[%emt 0:00:00]} 58. g5 {[%emt 0:00:00]} Ke7 {[%emt 0:00:00]} 59. Kg6 {[%emt 0:00:00]} Kf8 {[%emt 0:03:24]} 60. Kf6 {[%emt 0:00:00]} Be1 {[%emt 0:00:07]} 61. e7+ {[%emt 0:00:00]} Ke8 {[%emt 0:00:03]} 62. Bb5# {[%emt 0:00:00]} 1-0

[Event "9th Amsterdam Science Park A 2019"]
[Site "Amsterdam"]
[Date "2019.07.14"]
[Round "9.12"]
[White "Smirnova, Ekaterina"]
[Black "Keuning, Selwin"]
[Result "0-1"]
[ECO "E12"]
[WhiteElo "2184"]
[BlackElo "2078"]
[Annotator "NA"]
[PlyCount "142"]
[EventDate "2019.07.06"]
[EventType "swiss"]
[EventCountry "NED"]
[SourceTitle "playchess.com"]
[Source "ChessBase"]
[SourceQuality "1"]
[TimeControl "40/5400+30:1800+30"]

1. d4 Nf6 2. c4 e6 3. Nf3 b6 4. a3 Bb7 5. Nc3 d5 6. cxd5 Nxd5 7. Qc2 Nd7 8. e4 Nxc3 9. bxc3 Be7 10. Bd3 c5 11. O-O O-O 12. a4 Qc7 13. Qe2 Rfd8 14. e5 Nf8 15. Be3 f6 16. Bf4 Qc6 17. exf6 Bxf6 18. Be5 Bxe5 19. Qxe5 cxd4 20. cxd4 Qd6 21. Be2 Rac8 22. Rfd1 Bxf3 23. Bxf3 Qxe5 24. dxe5 Rxd1+ 25. Bxd1 Ng6 26. Bg4 Rc6 27. g3 Nxe5 28. Be2 Rc2 29. Kf1 a5 30. Rb1 Nd7 31. Bb5 Nc5 32. Rd1 Kf7 33. Rd8 Rb2 34. Rb8 Kf6 35. h4 Rb4 36. Ke2 Ne4 37. Ke3 Nc3 38. Bc6 Nxa4 39. Bxa4 Rxa4 40. Rxb6 Rb4 41. Ra6 a4 42. Ke2 g6 43. Ra7 h5 44. Ra6 Kf5 45. Kf1 e5 46. Kg2 Rc4 47. Kf1 Rb4 48. Ke2 Ke4 49. f3+ Kd4 50. Kd2 Rb2+ 51. Kc1 Rf2 52. Rxa4+ Ke3 53. Ra6 Kxf3 54. Rxg6 e4 55. Rf6+ Kxg3 56. Re6 Rf4 57. Kd2 Kf3 58. Re5 Rxh4 59. Rf5+ Kg4 60. Rf1 Rh3 61. Ke2 h4 62. Rf8 Ra3 63. Rg8+ Kh3 64. Kf2 Rf3+ 65. Ke2 Kh2 66. Rg4 h3 67. Rxe4 Kg2 68. Rh4 Rg3 69. Rf4 h2 70. Rf2+ Kh3 71. Rf1 Rg1 0-1